fUSD/lending_fUSD_20240118
["ID","MTS","AMOUNT","RATE_DAILY","PERIOD"]
[312057126,1705587050579,-237.468725,0.00031928,2]
[312057127,1705587050589,-873.52609,0.00031928,2]
[312057128,1705587050599,-1420.76662,0.00031928,2]
[312057129,1705587050608,-196.350004,0.00031928,2]
[312057130,1705587050617,-9231.805507,0.00031928,2]
[312057131,1705587050628,-3501.687657,0.00031928,2]
[312057132,1705587050638,-3199.218847,0.00031928,2]
[312057133,1705587050649,-153.84,0.00031963,2]
[312057134,1705587050660,-2369.5995336,0.00031978,2]
[312057135,1705587050671,-63691.7869195,0.00031978,2]
[312057136,1705587050683,-424.2935947,0.00031978,2]
[312057137,1705587050693,-200.0,0.00031987,3]
[312057138,1705587050702,-100000.0,0.00032,3]
[312057139,1705587050713,-100073.09558494,0.00032,3]
[312057140,1705587050723,-708.75160472,0.00032,5]
[312057141,1705587050732,-350.29649523,0.00032,7]
[312057142,1705587050742,-300.0,0.00032,2]
[312057143,1705587050751,-7648.3192592,0.00032,3]
[312057144,1705587050762,-500.59948205,0.00032,2]
[312057145,1705587050772,-250.0,0.00032,2]
[312057146,1705587050782,-272.28,0.00032,2]
[312057147,1705587050792,-20000.0,0.00032,4]
[312057148,1705587050803,-299.69627061,0.00032,4]
[312057149,1705587050814,-1163.49,0.00032,2]
[312057150,1705587050824,-500.0,0.00032,4]
[312057151,1705587050835,-600.0,0.00032,33]
[312057152,1705587050845,-1526.0,0.00032,3]
[312057153,1705587050855,-1000.0,0.00032,15]
[312057154,1705587050865,-1490.0,0.00032,8]
[312057155,1705587050875,-13073.17767594,0.00032,4]
[312057156,1705587050885,-950.0,0.00032,2]
[312057157,1705587050894,-9189.13,0.00032,2]
[312057158,1705587050904,-313.5152468,0.00032,4]
[312057159,1705587050917,-98309.64851546,0.00032,4]
[312057160,1705587050926,-500.0,0.00032,3]
[312057161,1705587050935,-400.0,0.00032,10]
[312057162,1705587050945,-1267.28998738,0.00032,30]
[312057163,1705587050954,-2500.0,0.00032,3]
[312057164,1705587050964,-320.687365,0.00032,5]
[312057165,1705587050973,-1039.9117336,0.00032,2]
[312057166,1705587050983,-500.0,0.00032,3]
[312057167,1705587050993,-450.0,0.00032004,3]
[312057168,1705587051002,-163.27567203,0.00032013,2]
[312057169,1705587051012,-175.728028,0.0003206,2]
[312057170,1705587051022,-169.557883,0.000321,2]
[312057171,1705587051031,-10000.0,0.000321,18]
[312057172,1705587051041,-381.17753907,0.00032129,2]
[312057173,1705587051051,-381.89192925,0.00032129,2]
[312057174,1705587051060,-163.27567203,0.00032141,2]
[312057175,1705587051070,-500.0,0.00032146,7]
[312057176,1705587051079,-152.0,0.00032199,6]
[312057177,1705587051089,-163.27567203,0.00032269,2]
[312057178,1705587051099,-151.0,0.00032287,30]
[312057179,1705587051109,-17427.0,0.000323,5]
[312057180,1705587051118,-163.625004,0.00032322,2]
[312057181,1705587051127,-156.202692,0.00032322,2]
[312057182,1705587051137,-237.468725,0.00032322,2]
[312057183,1705587051146,-873.52609,0.00032322,2]
[312057184,1705587051156,-1420.76662,0.00032322,2]
[312057185,1705587051166,-196.350004,0.00032322,2]
[312057186,1705587051175,-9231.805507,0.00032322,2]
[312057187,1705587051184,-3501.687657,0.00032322,2]
[312057188,1705587051194,-3199.218847,0.00032322,2]
[312057189,1705587051204,-450.0,0.00032335,3]
[312057190,1705587051213,-367.49,0.00032382,2]
[312057191,1705587051223,-500.0,0.0003239,7]
[312057192,1705587051233,-163.27567203,0.00032398,2]
[312057193,1705587051242,-288.0,0.00032413,2]
[312057194,1705587051251,-150.63255899,0.00032433,2]
[312057195,1705587051261,-381.17753907,0.00032434,2]
[312057196,1705587051270,-381.89192925,0.00032434,2]
[312057197,1705587051279,-150.0,0.00032444,2]
[312057198,1705587051288,-153.0,0.000325,2]
[312057199,1705587051298,-2052.0,0.00032525,30]
[312057200,1705587051307,-163.27567203,0.00032526,2]
[312057201,1705587051317,-175.728028,0.00032585,2]
[312057202,1705587051327,-500.0,0.00032633,7]
[312057203,1705587051336,-169.557883,0.00032635,2]
[312057204,1705587051345,-163.27567203,0.00032654,2]
[312057205,1705587051355,-450.0,0.00032665,3]
[312057206,1705587051364,-401.69,0.00032673,2]
[312057207,1705587051373,-802.93,0.00032674,2]
[312057208,1705587051383,-150.0,0.0003268,3]
[312057209,1705587051393,-712.0,0.00032681,2]
[312057210,1705587051402,-300.0,0.000327,2]
[312057211,1705587051413,-237.468725,0.00032717,2]
[312057212,1705587051423,-873.52609,0.00032717,2]
[312057213,1705587051433,-1420.76662,0.00032717,2]
[312057214,1705587051442,-196.350004,0.00032717,2]
[312057215,1705587051453,-9231.805507,0.00032717,2]
[312057216,1705587051463,-3501.687657,0.00032717,2]
[312057217,1705587051473,-3199.218847,0.00032717,2]
[312057218,1705587051484,-183.49628898,0.00032738,2]
[312057219,1705587051494,-161.35019333,0.00032738,2]
[312057220,1705587051504,-163.27567203,0.00032783,2]
[312057221,1705587051514,-207.0,0.000328,2]
[312057222,1705587051524,-1500.0,0.00032858,2]
[312057223,1705587051534,-235.3171311,0.00032876,7]
[312057224,1705587051544,-164.84830231,0.00032876,7]
[312057225,1705587051554,-229.07956116,0.00032876,7]
[312057226,1705587051563,-500.0,0.00032876,7]
[312057227,1705587051573,-500.0,0.00032876,7]
[312057228,1705587051583,-500.0,0.00032876,7]
[312057229,1705587051592,-500.0,0.00032876,7]
[312057230,1705587051602,-500.0,0.00032876,7]
[312057231,1705587051612,-500.0,0.00032876,7]
[312057232,1705587051624,-619.19520357,0.00032876,7]
[312057233,1705587051636,-685.43757143,0.00032876,7]
[312057234,1705587051646,-685.43757143,0.00032876,7]
[312057235,1705587051657,-685.43757143,0.00032876,7]
[312057236,1705587051666,-685.43757143,0.00032876,7]
[312057237,1705587051676,-685.43757143,0.00032876,7]
[312057238,1705587051686,-685.43757143,0.00032876,7]
[312057239,1705587051695,-685.43757143,0.00032876,7]
[312057240,1705587051705,-685.43757143,0.00032876,7]
[312057241,1705587051715,-685.43757143,0.00032876,7]
[312057242,1705587051725,-685.43757143,0.00032876,7]
[312057243,1705587051734,-685.43757143,0.00032876,7]
[312057244,1705587051743,-685.43757143,0.00032876,7]
[312057245,1705587051753,-685.43757143,0.00032876,7]
[312057246,1705587051762,-685.43757143,0.00032876,7]
[312057247,1705587051771,-685.43757143,0.00032876,7]
[312057248,1705587051780,-685.43757143,0.00032876,7]
[312057249,1705587051790,-685.43757143,0.00032876,7]
[312057250,1705587051799,-685.43757143,0.00032876,7]
[312057251,1705587051809,-822.5250857,0.00032876,7]
[312057252,1705587051819,-822.5250857,0.00032876,7]
[312057253,1705587051829,-706.831784,0.00032876,7]
[312057254,1705587051838,-706.831784,0.00032876,7]
[312057255,1705587051847,-706.831784,0.00032876,7]
[312057256,1705587051857,-706.831784,0.00032876,7]
[312057257,1705587051866,-706.831784,0.00032876,7]
[312057258,1705587051875,-706.831784,0.00032876,7]
[312057259,1705587051885,-500.0,0.00032876,7]
[312057260,1705587051894,-282.83789451,0.00032876,7]
[312057261,1705587051904,-229.03340649,0.00032876,7]
[312057262,1705587051916,-294.23862434,0.00032876,7]
[312057263,1705587051926,-456.33465448,0.00032876,7]
[312057264,1705587051936,-500.0,0.00032876,7]
[312057265,1705587051946,-500.0,0.00032876,7]
[312057266,1705587051956,-500.0,0.00032876,7]
[312057267,1705587051966,-500.0,0.00032876,7]
[312057268,1705587051976,-395.23873296,0.00032876,7]
[312057269,1705587051986,-156.5675789,0.00032876,7]
[312057270,1705587051996,-500.0,0.00032876,7]
[312057271,1705587052006,-604.44015698,0.00032876,7]
[312057272,1705587052016,-500.0,0.00032876,7]
[312057273,1705587052025,-500.0,0.00032876,7]
[312057274,1705587052035,-500.0,0.00032876,7]
[312057275,1705587052046,-479.92792674,0.00032876,7]
[312057276,1705587052055,-409.27879997,0.00032876,7]
[312057277,1705587052065,-500.0,0.00032876,7]
[312057278,1705587052075,-458.15912233,0.00032876,7]
[312057279,1705587052085,-229.07956116,0.00032876,7]
[312057280,1705587052094,-950.0,0.00032876,7]
[312057281,1705587052104,-8020.27,0.00032876,2]
[312057282,1705587052114,-153.84,0.00032877,2]
[312057283,1705587052124,-193.5218522,0.00032877,2]
[312057284,1705587052134,-1608.07,0.00032877,15]
[312057285,1705587052143,-8164.16,0.00032877,2]
[312057286,1705587052154,-667.52963785,0.00032877,14]
[312057287,1705587052165,-155.0,0.00032877,2]
[312057288,1705587052174,-2000.0,0.000329,2]
[312057289,1705587052184,-340.98921012,0.000329,2]
[312057290,1705587052194,-3999.94664639,0.000329,2]
[312057291,1705587052204,-262.0,0.000329,2]
[312057292,1705587052213,-3000.0,0.000329,2]
[312057293,1705587052223,-500.0,0.000329,2]
[312057294,1705587052234,-163.27567203,0.00032911,2]
[312057295,1705587052243,-501.06027291,0.00032942,7]
[312057296,1705587052253,-151.0,0.00032946,7]
[312057297,1705587052262,-164.63557991,0.00032947,7]
[312057298,1705587052272,-289.19944444,0.00032954,7]
[312057299,1705587052282,-158.6858272,0.00032959,7]
[312057300,1705587052292,-159.05007132,0.00032962,7]
[312057301,1705587052302,-150.00508267,0.00032978,7]
[312057302,1705587052312,-501.06027291,0.00032983,7]
[312057303,1705587052322,-163.15593562,0.00032986,7]
[312057304,1705587052332,-150.00508267,0.00032993,7]
[312057305,1705587052342,-450.0,0.00032996,3]
[312057306,1705587052352,-100000.0,0.00033,3]
[312057307,1705587052362,-155.0,0.00033,4]
[312057308,1705587052372,-48916.16309631,0.00033,10]
[312057309,1705587052383,-1000.0,0.00033,3]
[312057310,1705587052393,-15418.18,0.00033,14]
[312057311,1705587052403,-1000.0,0.00033,3]
[312057312,1705587052416,-754.19107637,0.00033,3]
[312057313,1705587052426,-500.0,0.00033,3]
[312057314,1705587052437,-500.0,0.00033,3]
[312057315,1705587052447,-460.91888384,0.00033,4]
[312057316,1705587052456,-7646.0,0.00033,3]
[312057317,1705587052466,-1543.08,0.00033,13]
[312057318,1705587052476,-2058.33,0.00033,9]
[312057319,1705587052486,-250.0,0.00033,2]
[312057320,1705587052499,-300.0,0.00033,2]
[312057321,1705587052510,-20000.0,0.00033,5]
[312057322,1705587052520,-286.54462669,0.00033,3]
[312057323,1705587052529,-714.0,0.00033,7]
[312057324,1705587052539,-600.0,0.00033,34]
[312057325,1705587052549,-1000.0,0.00033,7]
[312057326,1705587052559,-1114.13112634,0.00033,2]
[312057327,1705587052569,-5000.0,0.00033,10]
[312057328,1705587052579,-11018.47394117,0.00033,6]
[312057329,1705587052589,-637.34463505,0.00033,2]
[312057330,1705587052598,-1039.9117336,0.00033,2]
[312057331,1705587052608,-11980.70610238,0.00033,15]
[312057332,1705587052618,-500.0,0.00033,3]
[312057333,1705587052628,-150.72,0.00033,2]
[312057334,1705587052641,-150.72,0.00033,2]
[312057335,1705587052650,-150.72,0.00033,2]
[312057336,1705587052662,-150.72,0.00033,2]
[312057337,1705587052672,-150.72,0.00033,2]
[312057338,1705587052682,-150.72,0.00033,2]
[312057339,1705587052692,-150.72,0.00033,2]
[312057340,1705587052702,-150.72,0.00033,2]
[312057341,1705587052713,-150.72,0.00033,2]
[312057342,1705587052723,-150.72,0.00033,2]
[312057343,1705587052733,-150.72,0.00033,2]
[312057344,1705587052742,-150.72,0.00033,2]
[312057345,1705587052751,-150.72,0.00033,2]
[312057346,1705587052761,-150.72,0.00033,2]
[312057347,1705587052771,-150.72,0.00033,2]
[312057348,1705587052781,-150.72,0.00033,2]
[312057349,1705587052790,-150.72,0.00033,2]
[312057350,1705587052801,-150.72,0.00033,2]
[312057351,1705587052810,-150.72,0.00033,2]
[312057352,1705587052820,-150.72,0.00033,2]
[312057353,1705587052829,-150.72,0.00033,2]
[312057354,1705587052839,-150.72,0.00033,2]
[312057355,1705587052849,-150.72,0.00033,2]
[312057356,1705587052858,-150.72,0.00033,2]
[312057357,1705587052868,-150.72,0.00033,2]
[312057358,1705587052878,-150.72,0.00033,2]
[312057359,1705587053089,-150.72,0.00033,2]
[312057360,1705587053099,-150.72,0.00033,2]
[312057361,1705587053108,-157.78646478,0.00033004,7]
[312057362,1705587053118,-501.06027291,0.00033016,7]
[312057363,1705587053127,-153.53392262,0.0003302,7]
[312057364,1705587053136,-150.00508267,0.00033021,7]
[312057365,1705587053145,-163.15593562,0.00033024,7]
[312057366,1705587053154,-163.27567203,0.0003304,2]
[312057367,1705587053166,-289.19944444,0.00033042,7]
[312057368,1705587053175,-163.15593562,0.00033053,7]
[312057369,1705587053184,-289.19944444,0.00033076,7]
[312057370,1705587053193,-174.00751121,0.00033079,7]
[312057371,1705587053202,-152.28666953,0.00033086,7]
[312057372,1705587053212,-501.06027291,0.00033101,7]
[312057373,1705587053221,-163.625004,0.00033111,2]
[312057374,1705587053230,-156.202692,0.00033111,2]
[312057375,1705587053239,-165.480453,0.00033111,2]
[312057376,1705587053249,-175.728028,0.00033111,2]
[312057377,1705587053258,-237.468725,0.00033111,2]
[312057378,1705587053268,-873.52609,0.00033111,2]
[312057379,1705587053277,-1420.76662,0.00033111,2]
[312057380,1705587053286,-196.350004,0.00033111,2]
[312057381,1705587053295,-9231.805507,0.00033111,2]
[312057382,1705587053305,-3501.687657,0.00033111,2]
[312057383,1705587053314,-3199.218847,0.00033111,2]
[312057384,1705587053324,-150.0,0.00033111,2]
[312057385,1705587053334,-150.0,0.00033111,2]
[312057386,1705587053354,-501.06027291,0.00033126,7]
[312057387,1705587053364,-164.63557991,0.00033134,7]
[312057388,1705587053373,-153.53392262,0.00033142,7]
[312057389,1705587053383,-950.0,0.0003315,7]
[312057390,1705587053392,-501.06027291,0.0003315,7]
[312057391,1705587053401,-152.28666953,0.00033151,7]
[312057392,1705587053411,-164.63557991,0.00033158,7]
[312057393,1705587053421,-152.28666953,0.00033165,7]
[312057394,1705587053430,-150.0,0.00033165,2]
[312057395,1705587053438,-154.96396345,0.00033166,7]
[312057396,1705587053448,-163.27567203,0.00033168,2]
[312057397,1705587053457,-169.557883,0.0003317,2]
[312057398,1705587053466,-1500.0,0.0003318,2]
[312057399,1705587053476,-150.00508267,0.0003318,7]
[312057400,1705587053485,-500.0,0.000332,6]
[312057401,1705587053495,-289.19944444,0.000332,7]
[312057402,1705587053504,-161.50655081,0.00033204,7]
[312057403,1705587053513,-1053.84916775,0.00033206,2]
[312057404,1705587053522,-501.06027291,0.00033206,7]
[312057405,1705587053533,-152.28666953,0.00033209,7]
[312057406,1705587053542,-163.15593562,0.0003321,7]
[312057407,1705587053551,-735.87,0.00033211,30]
[312057408,1705587053561,-152.28666953,0.00033219,7]
[312057409,1705587053570,-289.19944444,0.00033224,7]
[312057410,1705587053579,-194.12,0.00033226,2]
[312057411,1705587053589,-300.0,0.00033226,2]
[312057412,1705587053598,-294.33,0.00033226,2]
[312057413,1705587053607,-408.55,0.00033226,2]
[312057414,1705587053616,-294.33,0.00033226,2]
[312057415,1705587053628,-408.55,0.00033226,2]
[312057416,1705587053638,-294.33,0.00033226,2]
[312057417,1705587053647,-408.01,0.00033226,2]
[312057418,1705587053657,-163.15593562,0.00033233,7]
[312057419,1705587053666,-164.63557991,0.00033251,7]
[312057420,1705587053676,-167.75004293,0.00033262,7]
[312057421,1705587053685,-150.00508267,0.00033288,7]
[312057422,1705587053695,-501.06027291,0.00033294,7]
[312057423,1705587053713,-163.27567203,0.00033296,2]
[312057424,1705587053728,-289.19944444,0.00033297,7]
[312057425,1705587053737,-35000.0,0.000333,2]
[312057426,1705587053747,-501.06027291,0.00033311,7]
[312057427,1705587053757,-450.0,0.00033327,3]
[312057428,1705587053766,-367.49,0.0003336,2]
[312057429,1705587053775,-206.0,0.00033387,17]
[312057430,1705587053785,-152.0,0.00033392,7]
[312057431,1705587053794,-289.19944444,0.00033395,7]
[312057432,1705587053811,-153.53392262,0.00033397,7]
[312057433,1705587053843,-1224.8042813,0.000334,60]
[312057434,1705587053853,-7021.49702159,0.000334,2]
[312057435,1705587053863,-200975.40394243,0.000334,2]
[312057436,1705587053872,-210.69018197,0.000334,2]
[312057437,1705587053882,-153.53392262,0.00033402,7]
[312057438,1705587053891,-181.25,0.00033404,7]
[312057439,1705587053900,-5000.0,0.00033423,2]
[312057440,1705587053909,-950.0,0.00033424,7]
[312057441,1705587053918,-13463.72957668,0.00033424,4]
[312057442,1705587053928,-13463.72957668,0.00033424,4]
[312057443,1705587053937,-13463.72957668,0.00033424,4]
[312057444,1705587053946,-13463.72957668,0.00033424,4]
[312057445,1705587053956,-13463.72957668,0.00033424,4]
[312057446,1705587053965,-13463.72957668,0.00033424,4]
[312057447,1705587053974,-13463.72957668,0.00033424,4]
[312057448,1705587053983,-13463.72957668,0.00033424,4]
[312057449,1705587053992,-13463.72957668,0.00033424,4]
[312057450,1705587054001,-13463.72857668,0.00033424,4]
[312057451,1705587054010,-163.27567203,0.00033425,2]
[312057452,1705587054020,-735.87,0.00033429,30]
[312057453,1705587054030,-101959.0,0.00033434,2]
[312057454,1705587054046,-1844.0,0.00033434,2]
[312057455,1705587054056,-362.0,0.00033434,2]
[312057456,1705587054066,-433.76491793,0.00033444,2]
[312057457,1705587054075,-1000.0,0.00033444,2]
[312057458,1705587054084,-154.96396345,0.00033444,7]
[312057459,1705587054094,-1215.08,0.00033453,2]
[312057460,1705587054103,-164.63557991,0.00033459,7]
[312057461,1705587054112,-188.0,0.0003346,36]
[312057462,1705587054122,-164.63557991,0.00033481,7]
[312057463,1705587054132,-157.78646478,0.00033485,7]
[312057464,1705587054141,-150.00508267,0.00033495,7]
[312057465,1705587054150,-1000.0,0.000335,3]
[312057466,1705587054160,-314.54724603,0.000335,2]
[312057467,1705587054170,-490.74874245,0.000335,4]
[312057468,1705587054179,-1034.7,0.000335,2]
[312057469,1705587054189,-1034.7,0.000335,2]
[312057470,1705587054198,-1034.7,0.000335,2]
[312057471,1705587054207,-1034.7,0.000335,2]
[312057472,1705587054217,-1034.7,0.000335,2]
[312057473,1705587054226,-1034.7,0.000335,2]
[312057474,1705587054236,-1034.7,0.000335,2]
[312057475,1705587054245,-1034.7,0.000335,2]
[312057476,1705587054255,-1034.7,0.000335,2]
[312057477,1705587054264,-1034.7,0.000335,2]
[312057478,1705587054273,-1034.7,0.000335,2]
[312057479,1705587054282,-1034.7,0.000335,2]
[312057480,1705587054292,-1034.7,0.000335,2]
[312057481,1705587054301,-1034.7,0.000335,2]
[312057482,1705587054311,-1034.7,0.000335,2]
[312057483,1705587054320,-1034.7,0.000335,2]
[312057484,1705587054330,-1034.7,0.000335,2]
[312057485,1705587054339,-1034.7,0.000335,2]
[312057486,1705587054348,-1034.7,0.000335,2]
[312057487,1705587054358,-1034.7,0.000335,2]
[312057488,1705587054367,-158.6858272,0.0003351,7]
[312057489,1705587054378,-501.06027291,0.00033533,7]
[312057490,1705587054388,-164.63557991,0.00033544,7]
[312057491,1705587054397,-163.27567203,0.00033553,2]
[312057492,1705587054407,-501.06027291,0.0003356,7]
[312057493,1705587054417,-289.19944444,0.00033579,7]
[312057494,1705587054426,-314.59,0.000336,5]
[312057495,1705587054436,-153.0,0.000336,2]
[312057496,1705587054446,-289.19944444,0.00033604,7]
[312057497,1705587054455,-158.52787628,0.00033609,7]
[312057498,1705587054465,-151.0,0.00033619,4]
[312057499,1705587054474,-501.06027291,0.00033624,7]
[312057500,1705587054484,-164.63557991,0.00033638,7]
[312057501,1705587054493,-735.87,0.00033647,30]
[312057502,1705587054502,-450.0,0.00033657,3]
[312057503,1705587054512,-154.96396345,0.0003367,7]
[312057504,1705587054521,-289.19944444,0.00033671,7]
[312057505,1705587054531,-289.19944444,0.00033675,7]
[312057506,1705587054540,-163.15593562,0.00033676,7]
[312057507,1705587054550,-163.27567203,0.00033681,2]
[312057508,1705587054559,-950.0,0.00033698,7]
[312057509,1705587054569,-500.0,0.000337,7]
[312057510,1705587054578,-250.0,0.000337,7]
[312057511,1705587054588,-157.96,0.000337,2]
[312057512,1705587054597,-157.96,0.000337,2]
[312057513,1705587054606,-157.96,0.000337,2]
[312057514,1705587054617,-157.96,0.000337,2]
[312057515,1705587054627,-152.45,0.000337,2]
[312057516,1705587054639,-152.45,0.000337,2]
[312057517,1705587054648,-152.45,0.000337,2]
[312057518,1705587054659,-152.45,0.000337,2]
[312057519,1705587054670,-152.45,0.000337,2]
[312057520,1705587054680,-152.45,0.000337,2]
[312057521,1705587054689,-152.45,0.000337,2]
[312057522,1705587054698,-152.45,0.000337,2]
[312057523,1705587054708,-152.45,0.000337,2]
[312057524,1705587054718,-152.45,0.000337,2]
[312057525,1705587054727,-169.557883,0.00033705,2]
[312057526,1705587054737,-164.63557991,0.00033716,7]
[312057527,1705587054746,-289.19944444,0.00033748,7]
[312057528,1705587054756,-174.00751121,0.00033749,7]
[312057529,1705587054765,-150.0,0.00033756,120]
[312057530,1705587054775,-101959.0,0.00033779,2]
[312057531,1705587054784,-1844.0,0.00033779,2]
[312057532,1705587054793,-362.0,0.00033779,2]
[312057533,1705587054803,-163.15593562,0.00033783,7]
[312057534,1705587054812,-153.84,0.0003379,2]
[312057535,1705587054822,-1400.89,0.000338,5]
[312057536,1705587054831,-10000.0,0.000338,18]
[312057537,1705587054840,-163.27567203,0.0003381,2]
[312057538,1705587054849,-289.19944444,0.00033811,7]
[312057539,1705587054858,-153.53392262,0.00033826,7]
[312057540,1705587054867,-151.36864018,0.00033838,7]
[312057541,1705587054877,-289.19944444,0.00033854,7]
[312057542,1705587054886,-163.15593562,0.00033861,7]
[312057543,1705587054896,-735.87,0.00033865,30]
[312057544,1705587054905,-150.0,0.00033886,2]
[312057545,1705587054915,-151.36864018,0.00033903,7]
[312057546,1705587054924,-289.19944444,0.00033906,7]
[312057547,1705587054934,-501.06027291,0.00033913,7]
[312057548,1705587054944,-163.27567203,0.00033938,2]
[312057549,1705587054953,-163.15593562,0.0003396,7]
[312057550,1705587054963,-164.63557991,0.00033966,7]
[312057551,1705587054972,-950.0,0.00033972,7]
[312057552,1705587054982,-25559.93189086,0.00033979,2]
[312057553,1705587054992,-500.0,0.00033987,6]
[312057554,1705587055002,-500.0,0.00033987,7]
[312057555,1705587055011,-450.0,0.00033988,3]
[312057556,1705587055021,-163.15593562,0.00033995,7]
[312057557,1705587055030,-100000.0,0.00034,4]
[312057558,1705587055040,-45641.71968148,0.00034,2]
[312057559,1705587055049,-1000.0,0.00034,4]
[312057560,1705587055058,-155.0,0.00034,4]
[312057561,1705587055067,-500000.0,0.00034,4]
[312057562,1705587055076,-1180.76720106,0.00034,4]
[312057563,1705587055085,-155.66708799,0.00034,4]
[312057564,1705587055095,-500.0,0.00034,2]
[312057565,1705587055104,-17000.0,0.00034,3]
[312057566,1705587055114,-500.0,0.00034,2]
[312057567,1705587055123,-279.08,0.00034,2]
[312057568,1705587055132,-1006.0300109,0.00034,4]
[312057569,1705587055141,-500.0,0.00034,3]
[312057570,1705587055151,-500.0,0.00034,3]
[312057571,1705587055160,-1000.0,0.00034,15]
[312057572,1705587055169,-610.53525118,0.00034,4]
[312057573,1705587055178,-1508.0,0.00034,5]
[312057574,1705587055187,-250.0,0.00034,2]
[312057575,1705587055196,-300.0,0.00034,2]
[312057576,1705587055205,-200.0,0.00034,2]
[312057577,1705587055215,-76730.06172799,0.00034,5]
[312057578,1705587055224,-20950.64733,0.00034,6]
[312057579,1705587055233,-5500.0,0.00034,2]
[312057580,1705587055242,-126842.56737608,0.00034,2]
[312057581,1705587055252,-126863.4879416,0.00034,2]
[312057582,1705587055261,-1000.0,0.00034,30]
[312057583,1705587055270,-600.0,0.00034,35]
[312057584,1705587055279,-200.04171201,0.00034,2]
[312057585,1705587055288,-10087.83810324,0.00034,4]
[312057586,1705587055297,-1008.51070157,0.00034,15]
[312057587,1705587055306,-2228.70220234,0.00034,30]
[312057588,1705587055605,-273.78965531,0.00034,30]
[312057589,1705587055614,-301.02477081,0.00034,5]
[312057590,1705587055624,-12040.39479817,0.00034,2]
[312057591,1705587055638,-1899.8979998,0.00034,2]
[312057592,1705587055820,-5243.13079537,0.00034,2]
[312057593,1705587055871,-2926.2926,0.00034,2]
[312057594,1705587056131,170.76,0.00020501,2]
[312057595,1705587056152,-1161.65779232,0.00022999,2]
[312057596,1705587056164,-325.71932272,0.00022999,2]
[312057597,1705587056175,-365.29499343,0.00022999,2]
[312057598,1705587056190,-648.91636192,0.00022999,2]
[312057599,1705587056205,-794.62963665,0.00022999,2]
[312057600,1705587056214,-5153.6,0.00027397,10]
[312057601,1705587056223,-401.69,0.00027863,2]
[312057602,1705587056232,-941.24,0.00033627,2]
[312057603,1705587056241,-1079.62036335,0.00034,2]
[312057604,1705587056252,-10798.5278766,0.00034,2]
[312057605,1705587056263,-8636.84932786,0.00034,2]
[312057606,1705587056289,-170.76,0.00022765,2]
[312057607,1705587056298,-150.0,0.00027703,2]
[312057608,1705587056307,-1353.61926247,0.00034,2]
[312057616,1705587982155,-360.0,0.00021999,2]
[312057617,1705587982177,-2250.0,0.00022,3]
[312057618,1705587982198,-736.0,0.00022,2]
[312057619,1705587996086,-2321.22276359,0.00022,2]
[312057620,1705587996108,-162.84,0.00023883,2]
[312057621,1705587996129,-676.81711947,0.00024,3]
[312057659,1705588232296,-240.0,0.00023453,2]
[312057660,1705588232305,-143.14260203,0.00023454,2]
[312057661,1705588232353,-20.64739797,0.00023454,2]
[312057662,1705588232362,-237.55260203,0.000238,2]
[312057687,1705588238304,-122.63739797,0.000238,2]
[312057689,1705588238313,-134.43762102,0.00023976,2]
[312057695,1705588238353,-24.14862807,0.00023976,2]
[312057697,1705588238362,-281.93007193,0.00024,3]
[312057699,1705588238374,-1341.2528086,0.00024,3]
[312057701,1705588238383,-4344.79734035,0.00024,2]
[312057702,1705588238392,-6725.12354515,0.00024,2]